[Event "GrandPrix_29.05"]
[Site "Chess.com"]
[Date "2020.05.29"]
[Round "6"]
[White "Luq27"]
[Black "Aliakbarov_Anar"]
[Result "0-1"]
[WhiteElo "2158"]
[BlackElo "2162"]
[TimeControl "600+2"]
[EndTime "11:58:57 PDT"]
[Termination "Aliakbarov_Anar won by resignation"]

1. Nf3 {[%clk 0:10:01.9]} 1... d5 {[%clk 0:10:00.7]} 2. d4 {[%clk 0:10:02.1]}
2... Nf6 {[%clk 0:09:58.8]} 3. c4 {[%clk 0:10:02.4]} 3... e6 {[%clk 0:09:59.9]}
4. g3 {[%clk 0:10:03]} 4... Be7 {[%clk 0:10:00.8]} 5. Bg2 {[%clk 0:10:03.8]}
5... O-O {[%clk 0:10:02.4]} 6. O-O {[%clk 0:10:04.8]} 6... dxc4 {[%clk
0:10:04.1]} 7. Qc2 {[%clk 0:10:05.1]} 7... c6 {[%clk 0:10:05]} 8. Qxc4 {[%clk
0:09:59.2]} 8... b5 {[%clk 0:10:06.1]} 9. Qb3 {[%clk 0:09:14.5]} 9... Bb7 {[%clk
0:10:03.6]} 10. Rd1 {[%clk 0:07:43]} 10... Nbd7 {[%clk 0:10:01.7]} 11. Bg5
{[%clk 0:07:23.3]} 11... a6 {[%clk 0:10:01.1]} 12. a4 {[%clk 0:06:13.3]} 12...
Qb6 {[%clk 0:09:45.7]} 13. Nc3 {[%clk 0:05:34.2]} 13... b4 {[%clk 0:09:41.7]}
14. Ne4 {[%clk 0:05:35.1]} 14... a5 {[%clk 0:09:32.5]} 15. Rac1 {[%clk
0:05:33.1]} 15... Nxe4 {[%clk 0:09:01.2]} 16. Bxe7 {[%clk 0:05:29]} 16... Rfe8
{[%clk 0:09:02.3]} 17. Bc5 {[%clk 0:03:49.7]} 17... Ndxc5 {[%clk 0:08:47.7]} 18.
dxc5 {[%clk 0:03:51.6]} 18... Nxc5 {[%clk 0:08:49.1]} 19. Qc2 {[%clk 0:03:47.8]}
19... Na6 {[%clk 0:08:29.3]} 20. Ng5 {[%clk 0:03:47.5]} 20... g6 {[%clk
0:08:23.9]} 21. Rd7 {[%clk 0:03:01.9]} 21... Rf8 {[%clk 0:08:07.6]} 22. Qe4
{[%clk 0:02:32.3]} 22... Rad8 {[%clk 0:06:42.3]} 23. Rcd1 {[%clk 0:02:18.5]}
23... Nc5 {[%clk 0:05:08.4]} 24. Qh4 {[%clk 0:02:13.6]} 24... h5 {[%clk
0:05:08.1]} 25. R7d2 {[%clk 0:01:20.5]} 25... Rxd2 {[%clk 0:04:58.7]} 26. Rxd2
{[%clk 0:01:22.4]} 26... Rd8 {[%clk 0:04:56.2]} 27. Qf4 {[%clk 0:01:17.5]} 27...
f5 {[%clk 0:04:36.3]} 28. h4 {[%clk 0:00:56.4]} 28... Rxd2 {[%clk 0:04:08.4]}
29. Qxd2 {[%clk 0:00:58.3]} 29... Qc7 {[%clk 0:04:09.8]} 30. Qc2 {[%clk
0:00:20.6]} 30... Qe7 {[%clk 0:04:08.5]} 31. f4 {[%clk 0:00:18.2]} 31... Nd7
{[%clk 0:03:39.3]} 32. Bxc6 {[%clk 0:00:16.8]} 32... Bxc6 {[%clk 0:03:40.2]} 33.
Qxc6 {[%clk 0:00:18.7]} 33... Qc5+ {[%clk 0:03:40.9]} 34. Qxc5 {[%clk
0:00:19.6]} 34... Nxc5 {[%clk 0:03:42.8]} 35. Kf2 {[%clk 0:00:18.1]} 35... Nxa4
{[%clk 0:03:39.8]} 36. Nxe6 {[%clk 0:00:18.3]} 36... Nxb2 {[%clk 0:03:41.1]} 37.
Ke3 {[%clk 0:00:19.7]} 37... a4 {[%clk 0:03:41.6]} 38. Kd2 {[%clk 0:00:18.5]}
38... Nc4+ {[%clk 0:03:35.9]} 39. Kc2 {[%clk 0:00:17.2]} 39... b3+ {[%clk
0:03:35.2]} 40. Kc3 {[%clk 0:00:17.1]} 40... b2 {[%clk 0:03:35.2]} 41. Kc2
{[%clk 0:00:18.3]} 41... a3 {[%clk 0:03:36]} 0-1

[Event "GrandPrix_29.05"]
[Site "Chess.com"]
[Date "2020.05.29"]
[Round "6"]
[White "anesar92"]
[Black "DenisQ"]
[Result "1-0"]
[WhiteElo "2289"]
[BlackElo "2058"]
[TimeControl "600+2"]
[EndTime "11:58:57 PDT"]
[Termination "anesar92 won by resignation"]

1. e4 {[%clk 0:10:01.9]} 1... c6 {[%clk 0:09:57.5]} 2. d4 {[%clk 0:10:01.3]}
2... d5 {[%clk 0:09:57]} 3. e5 {[%clk 0:09:59.7]} 3... c5 {[%clk 0:09:57.3]} 4.
dxc5 {[%clk 0:09:59.4]} 4... Nc6 {[%clk 0:09:56.9]} 5. Nf3 {[%clk 0:09:59.8]}
5... Bg4 {[%clk 0:09:55.6]} 6. Be3 {[%clk 0:10:00.5]} 6... e6 {[%clk 0:09:32]}
7. c3 {[%clk 0:10:00.8]} 7... Bxf3 {[%clk 0:09:28.4]} 8. Qxf3 {[%clk 0:09:59.6]}
8... Nxe5 {[%clk 0:09:28.5]} 9. Bb5+ {[%clk 0:10:00.2]} 9... Nc6 {[%clk
0:09:28.9]} 10. c4 {[%clk 0:10:00.2]} 10... Qf6 {[%clk 0:07:40.8]} 11. Qg3
{[%clk 0:09:16.7]} 11... O-O-O {[%clk 0:05:20.3]} 12. Bg5 {[%clk 0:08:37.2]}
12... Qxb2 {[%clk 0:05:05.9]} 13. Bxc6 {[%clk 0:07:39.2]} 13... Nf6 {[%clk
0:03:02.9]} 14. Bxf6 {[%clk 0:04:13.4]} 14... gxf6 {[%clk 0:02:33]} 15. O-O
{[%clk 0:04:13.7]} 15... bxc6 {[%clk 0:02:28.8]} 16. Nc3 {[%clk 0:04:13.6]}
16... Qb8 {[%clk 0:02:01.5]} 17. Qh3 {[%clk 0:04:00.6]} 17... Bxc5 {[%clk
0:01:32.6]} 18. cxd5 {[%clk 0:04:00.4]} 18... cxd5 {[%clk 0:01:31.8]} 19. Rac1
{[%clk 0:04:00.8]} 19... Kb7 {[%clk 0:01:09.4]} 20. Rb1+ {[%clk 0:03:54.8]}
20... Bb6 {[%clk 0:01:09.3]} 21. a4 {[%clk 0:03:56.2]} 21... d4 {[%clk
0:01:01.9]} 22. Qf3+ {[%clk 0:03:52.9]} 22... Kc8 {[%clk 0:01:00.8]} 23. Nb5
{[%clk 0:03:51.2]} 23... Qb7 {[%clk 0:00:52.4]} 24. Rfc1+ {[%clk 0:03:44.2]}
24... Kb8 {[%clk 0:00:52.3]} 25. Qg3+ {[%clk 0:03:45]} 25... Ka8 {[%clk
0:00:45.3]} 26. a5 {[%clk 0:03:39.9]} 26... Bxa5 {[%clk 0:00:45.4]} 27. Nxa7
{[%clk 0:02:27.1]} 27... Qxa7 {[%clk 0:00:38.2]} 28. Rc8+ {[%clk 0:02:26]} 28...
Rxc8 {[%clk 0:00:32.2]} 29. Qf3+ {[%clk 0:02:27]} 1-0

[Event "GrandPrix_29.05"]
[Site "Chess.com"]
[Date "2020.05.29"]
[Round "6"]
[White "Magicmaster17"]
[Black "Guenplen"]
[Result "1/2-1/2"]
[WhiteElo "2421"]
[BlackElo "2494"]
[TimeControl "600+2"]
[EndTime "11:59:03 PDT"]
[Termination "Game drawn by agreement"]

1. e4 {[%clk 0:09:57.2]} 1... c5 {[%clk 0:09:59.9]} 2. Nf3 {[%clk 0:09:57.9]}
2... e6 {[%clk 0:10:01]} 3. c4 {[%clk 0:09:55.3]} 3... Nc6 {[%clk 0:10:01]} 4.
Nc3 {[%clk 0:09:55.8]} 4... Nge7 {[%clk 0:09:33.6]} 5. d4 {[%clk 0:09:17.8]}
5... Nxd4 {[%clk 0:09:34.2]} 6. Nxd4 {[%clk 0:09:18.9]} 6... cxd4 {[%clk
0:09:36.1]} 7. Qxd4 {[%clk 0:09:19.6]} 7... Nc6 {[%clk 0:09:37.3]} 8. Qd3 {[%clk
0:09:17.8]} 8... Bc5 {[%clk 0:09:24.1]} 9. Be2 {[%clk 0:09:17.9]} 9... O-O
{[%clk 0:09:02.8]} 10. O-O {[%clk 0:09:17.6]} 10... d6 {[%clk 0:08:59.1]} 11.
Qg3 {[%clk 0:08:49.7]} 11... Qf6 {[%clk 0:08:21.6]} 12. Bf4 {[%clk 0:06:21.4]}
12... e5 {[%clk 0:07:57.2]} 13. Nd5 {[%clk 0:06:18.2]} 13... Qg6 {[%clk
0:07:52.6]} 14. Qxg6 {[%clk 0:06:19]} 14... hxg6 {[%clk 0:07:48.3]} 15. Be3
{[%clk 0:06:20]} 15... Be6 {[%clk 0:07:16.9]} 16. Rfd1 {[%clk 0:06:07.7]} 16...
Rac8 {[%clk 0:06:54.9]} 17. Rab1 {[%clk 0:05:39.4]} 17... Bxd5 {[%clk
0:05:49.7]} 18. exd5 {[%clk 0:04:39.5]} 18... Nd4 {[%clk 0:05:42]} 19. Bd3
{[%clk 0:04:04.3]} 19... a5 {[%clk 0:05:40.3]} 20. g3 {[%clk 0:03:10.2]} 20...
Rfe8 {[%clk 0:04:32.8]} 21. Kg2 {[%clk 0:03:10.4]} 21... b6 {[%clk 0:04:06.2]}
22. b3 {[%clk 0:02:46.5]} 22... e4 {[%clk 0:03:50.9]} 23. Bxd4 {[%clk
0:02:34.3]} 23... Bxd4 {[%clk 0:03:49.2]} 24. Bc2 {[%clk 0:02:19.1]} 24... Bc5
{[%clk 0:03:49.7]} 25. Re1 {[%clk 0:02:18.3]} 25... f5 {[%clk 0:03:49.9]} 26. f3
{[%clk 0:01:27.9]} 26... e3 {[%clk 0:03:39.5]} 27. Re2 {[%clk 0:01:28.2]} 27...
Kf7 {[%clk 0:03:32.1]} 28. f4 {[%clk 0:01:29.3]} 28... Bb4 {[%clk 0:03:11.1]}
29. a4 {[%clk 0:01:25.4]} 29... Kf6 {[%clk 0:02:32]} 30. h4 {[%clk 0:01:25.4]}
30... Bc5 {[%clk 0:02:27.6]} 31. Kf3 {[%clk 0:01:26.2]} 31... Re7 {[%clk
0:02:29]} 32. Rg1 {[%clk 0:01:26.8]} 32... Rh8 {[%clk 0:02:29.4]} 33. Bd3 {[%clk
0:01:21.7]} 33... Rh6 {[%clk 0:01:56.9]} 34. Rgg2 {[%clk 0:01:22.6]} 1/2-1/2

[Event "GrandPrix_29.05"]
[Site "Chess.com"]
[Date "2020.05.29"]
[Round "6"]
[White "ZverevLev"]
[Black "mikolka1985"]
[Result "0-1"]
[WhiteElo "2231"]
[BlackElo "2440"]
[TimeControl "600+2"]
[EndTime "11:59:03 PDT"]
[Termination "mikolka1985 won by checkmate"]

1. e4 {[%clk 0:09:53.7]} 1... e5 {[%clk 0:09:58.2]} 2. Nf3 {[%clk 0:09:52.7]}
2... Nc6 {[%clk 0:09:56.3]} 3. Bb5 {[%clk 0:09:51.9]} 3... a6 {[%clk 0:09:55.5]}
4. Ba4 {[%clk 0:09:46.2]} 4... Nf6 {[%clk 0:09:55.9]} 5. O-O {[%clk 0:09:45]}
5... Be7 {[%clk 0:09:56]} 6. d3 {[%clk 0:09:44.5]} 6... b5 {[%clk 0:09:53.9]} 7.
Bb3 {[%clk 0:09:44.6]} 7... O-O {[%clk 0:09:55.1]} 8. c3 {[%clk 0:09:44.3]} 8...
d6 {[%clk 0:09:54.5]} 9. Nbd2 {[%clk 0:09:36.2]} 9... Nb8 {[%clk 0:09:52.6]} 10.
Re1 {[%clk 0:09:31.8]} 10... Nbd7 {[%clk 0:09:52.4]} 11. Nf1 {[%clk 0:09:31.1]}
11... Nc5 {[%clk 0:09:49.7]} 12. Bc2 {[%clk 0:09:31]} 12... Re8 {[%clk
0:09:49.4]} 13. Ng3 {[%clk 0:09:30.7]} 13... Bf8 {[%clk 0:09:49.5]} 14. h3
{[%clk 0:09:30]} 14... Bb7 {[%clk 0:09:37.1]} 15. Be3 {[%clk 0:09:28.7]} 15...
g6 {[%clk 0:09:26.7]} 16. Qd2 {[%clk 0:09:27.7]} 16... Ncd7 {[%clk 0:09:23]} 17.
Rad1 {[%clk 0:09:27]} 17... c5 {[%clk 0:09:22.2]} 18. d4 {[%clk 0:09:21.6]}
18... exd4 {[%clk 0:09:18.8]} 19. cxd4 {[%clk 0:09:21]} 19... Bxe4 {[%clk
0:09:14.1]} 20. Nxe4 {[%clk 0:09:20.8]} 20... Nxe4 {[%clk 0:09:14.1]} 21. Bxe4
{[%clk 0:09:21.4]} 21... Rxe4 {[%clk 0:09:10.9]} 22. dxc5 {[%clk 0:09:21.3]}
22... Re6 {[%clk 0:08:55.3]} 23. Nd4 {[%clk 0:09:11.3]} 23... Re8 {[%clk
0:08:40.4]} 24. cxd6 {[%clk 0:09:10.2]} 24... Ne5 {[%clk 0:08:26.3]} 25. b3
{[%clk 0:08:12.2]} 25... Qxd6 {[%clk 0:08:23.9]} 26. Qb2 {[%clk 0:07:50]} 26...
Bg7 {[%clk 0:08:20.3]} 27. Nf5 {[%clk 0:07:35.5]} 27... Qxd1 {[%clk 0:08:14.2]}
28. Nh6+ {[%clk 0:06:22.4]} 28... Kh8 {[%clk 0:08:12.7]} 29. Rxd1 {[%clk
0:06:21.7]} 29... Nf3+ {[%clk 0:08:12.3]} 30. gxf3 {[%clk 0:06:22.9]} 30... Bxb2
{[%clk 0:08:13.2]} 31. Nxf7+ {[%clk 0:06:18.7]} 31... Kg7 {[%clk 0:08:05.9]} 32.
Nd6 {[%clk 0:06:18.9]} 32... Re6 {[%clk 0:07:51]} 33. Rb1 {[%clk 0:06:15.5]}
33... Rxd6 {[%clk 0:07:39.1]} 34. Rxb2 {[%clk 0:06:14.8]} 34... Rc8 {[%clk
0:07:38.4]} 35. b4 {[%clk 0:06:11.7]} 35... Rc4 {[%clk 0:07:36.2]} 36. Bc5
{[%clk 0:06:09.3]} 36... Rd7 {[%clk 0:07:36.4]} 37. Re2 {[%clk 0:06:08.4]} 37...
Kf7 {[%clk 0:07:32.7]} 38. Re3 {[%clk 0:06:05.7]} 38... Rc2 {[%clk 0:07:11]} 39.
a3 {[%clk 0:06:05]} 39... Rcd2 {[%clk 0:07:10.3]} 40. Re4 {[%clk 0:05:51.6]}
40... R2d3 {[%clk 0:07:08.1]} 41. Rf4+ {[%clk 0:05:52.1]} 41... Ke6 {[%clk
0:07:07.2]} 42. Rf8 {[%clk 0:05:50.4]} 42... Rf7 {[%clk 0:07:03.8]} 43. Re8+
{[%clk 0:05:48.1]} 43... Kd5 {[%clk 0:07:03.7]} 44. Ra8 {[%clk 0:05:46.9]} 44...
Rxa3 {[%clk 0:06:58.2]} 45. Kg2 {[%clk 0:05:47]} 45... Kc4 {[%clk 0:06:57.6]}
46. Rc8 {[%clk 0:05:40.6]} 46... Kb3 {[%clk 0:06:56.6]} 47. Rc6 {[%clk
0:05:35.6]} 47... Ra2 {[%clk 0:06:54]} 48. Re6 {[%clk 0:05:29.8]} 48... Rd7
{[%clk 0:06:40.5]} 49. Re3+ {[%clk 0:05:27.5]} 49... Ka4 {[%clk 0:06:39.8]} 50.
Kg3 {[%clk 0:05:24.1]} 50... Ra3 {[%clk 0:06:36.5]} 51. Re6 {[%clk 0:05:24.3]}
51... Kb3 {[%clk 0:06:31.9]} 52. Re3+ {[%clk 0:05:23.9]} 52... Kb2 {[%clk
0:06:28.5]} 53. Re2+ {[%clk 0:05:24]} 53... Kb1 {[%clk 0:06:25.8]} 54. Re1+
{[%clk 0:05:23.8]} 54... Kc2 {[%clk 0:06:25.7]} 55. Re2+ {[%clk 0:05:24.4]}
55... Rd2 {[%clk 0:06:24.3]} 56. Re7 {[%clk 0:05:22.8]} 56... Rdd3 {[%clk
0:06:21]} 57. Rxh7 {[%clk 0:05:21.6]} 57... Rxf3+ {[%clk 0:06:21]} 58. Kg4
{[%clk 0:05:20.3]} 58... Rfc3 {[%clk 0:05:54.5]} 59. h4 {[%clk 0:05:19.2]} 59...
a5 {[%clk 0:05:52.8]} 60. Kg5 {[%clk 0:05:13]} 60... a4 {[%clk 0:05:46.2]} 61.
Kxg6 {[%clk 0:05:12.4]} 61... Rh3 {[%clk 0:05:45.2]} 62. h5 {[%clk 0:05:11.3]}
62... Rac3 {[%clk 0:05:42.4]} 63. Ra7 {[%clk 0:05:09.4]} 63... Rc4 {[%clk
0:05:36.7]} 64. h6 {[%clk 0:04:50.3]} 64... Rg4+ {[%clk 0:05:33.6]} 65. Kf5
{[%clk 0:04:50.9]} 65... Rgh4 {[%clk 0:05:33.6]} 66. Be3 {[%clk 0:04:50.2]}
66... Kb3 {[%clk 0:05:16.3]} 67. Kg6 {[%clk 0:04:47.4]} 67... a3 {[%clk
0:05:15.3]} 68. h7 {[%clk 0:04:47.2]} 68... a2 {[%clk 0:05:12.2]} 69. Bc1 {[%clk
0:04:30.3]} 69... Rxh7 {[%clk 0:04:51.1]} 70. Ra3+ {[%clk 0:04:29.3]} 70... Kc2
{[%clk 0:04:51.1]} 71. Rxa2+ {[%clk 0:04:28.9]} 71... Kxc1 {[%clk 0:04:51.4]}
72. f4 {[%clk 0:04:28.4]} 72... R3h6+ {[%clk 0:04:48]} 73. Kg5 {[%clk
0:04:28.1]} 73... Rh5+ {[%clk 0:04:47.9]} 74. Kg4 {[%clk 0:04:24.2]} 74... Rd5
{[%clk 0:04:42.8]} 75. f5 {[%clk 0:04:18.8]} 75... Rg7+ {[%clk 0:04:33.3]} 76.
Kf4 {[%clk 0:04:17.6]} 76... Rf7 {[%clk 0:04:33.2]} 77. Ke4 {[%clk 0:04:17.6]}
77... Rfxf5 {[%clk 0:04:31.7]} 78. Rh2 {[%clk 0:04:18.8]} 78... Rfe5+ {[%clk
0:04:30.5]} 79. Kf4 {[%clk 0:04:19.7]} 79... Re1 {[%clk 0:04:29.9]} 80. Kf3
{[%clk 0:04:19.2]} 80... Rd3+ {[%clk 0:04:28.9]} 81. Kf4 {[%clk 0:04:19.7]}
81... Rd4+ {[%clk 0:04:29.1]} 82. Kf3 {[%clk 0:04:20.4]} 82... Rxb4 {[%clk
0:04:27.7]} 83. Rh5 {[%clk 0:04:20.9]} 83... Re7 {[%clk 0:04:21.8]} 84. Rc5+
{[%clk 0:04:20.1]} 84... Kb2 {[%clk 0:04:20.8]} 85. Kf2 {[%clk 0:04:20.4]} 85...
Rb3 {[%clk 0:04:20.2]} 86. Kf1 {[%clk 0:04:19.2]} 86... b4 {[%clk 0:04:20.5]}
87. Rc4 {[%clk 0:04:16.5]} 87... Rf7+ {[%clk 0:04:16.7]} 88. Ke2 {[%clk
0:04:13.5]} 88... Ka3 {[%clk 0:04:13.7]} 89. Kd2 {[%clk 0:04:13.9]} 89... Rd7+
{[%clk 0:04:13.3]} 90. Ke1 {[%clk 0:04:10.9]} 90... Rb1+ {[%clk 0:04:12.7]} 91.
Ke2 {[%clk 0:04:10.5]} 91... b3 {[%clk 0:04:13.2]} 92. Rc6 {[%clk 0:04:08.5]}
92... Rh1 {[%clk 0:04:11.5]} 93. Ra6+ {[%clk 0:04:08]} 93... Kb2 {[%clk
0:04:11.1]} 94. Kf2 {[%clk 0:04:06.2]} 94... Re7 {[%clk 0:04:10.3]} 95. Kg2
{[%clk 0:04:06.4]} 95... Rhe1 {[%clk 0:04:08.5]} 96. Rd6 {[%clk 0:04:06.7]}
96... R1e6 {[%clk 0:04:07.3]} 97. Rd2+ {[%clk 0:04:06.6]} 97... Kc3 {[%clk
0:04:07.5]} 98. Rd1 {[%clk 0:04:06.6]} 98... Rf6 {[%clk 0:04:06.6]} 99. Rd8
{[%clk 0:04:06.3]} 99... Rg7+ {[%clk 0:04:05.8]} 100. Kh3 {[%clk 0:04:07]}
100... Rh6# {[%clk 0:04:05.9]} 0-1

[Event "GrandPrix_29.05"]
[Site "Chess.com"]
[Date "2020.05.29"]
[Round "6"]
[White "sergiochess83"]
[Black "DanielDardha2005"]
[Result "1/2-1/2"]
[WhiteElo "2486"]
[BlackElo "2370"]
[TimeControl "600+2"]
[EndTime "11:59:10 PDT"]
[Termination "Game drawn by repetition"]

1. e4 {[%clk 0:10:01.5]} 1... c5 {[%clk 0:10:01]} 2. Nf3 {[%clk 0:10:00.6]} 2...
Nc6 {[%clk 0:10:02.3]} 3. Bb5 {[%clk 0:09:58.1]} 3... Nf6 {[%clk 0:10:02.7]} 4.
Nc3 {[%clk 0:09:55]} 4... g6 {[%clk 0:10:03.4]} 5. O-O {[%clk 0:08:47.2]} 5...
Bg7 {[%clk 0:10:03.7]} 6. Re1 {[%clk 0:08:48.3]} 6... O-O {[%clk 0:10:04.3]} 7.
h3 {[%clk 0:08:46]} 7... Nd4 {[%clk 0:09:36.1]} 8. Bc4 {[%clk 0:08:37.9]} 8...
Nxf3+ {[%clk 0:09:26.7]} 9. Qxf3 {[%clk 0:08:38.4]} 9... d6 {[%clk 0:09:28.6]}
10. d3 {[%clk 0:08:35.8]} 10... Nd7 {[%clk 0:09:23.2]} 11. Qg3 {[%clk
0:08:24.9]} 11... Ne5 {[%clk 0:09:19.1]} 12. Bb3 {[%clk 0:08:25]} 12... a6
{[%clk 0:09:18.5]} 13. a4 {[%clk 0:08:22.1]} 13... Nc6 {[%clk 0:09:18.2]} 14.
Ne2 {[%clk 0:08:16.9]} 14... Bd7 {[%clk 0:09:09.4]} 15. c3 {[%clk 0:08:09.7]}
15... b5 {[%clk 0:09:09.2]} 16. axb5 {[%clk 0:08:05.8]} 16... axb5 {[%clk
0:09:11.1]} 17. Bg5 {[%clk 0:08:07.1]} 17... b4 {[%clk 0:08:29.9]} 18. Bd5
{[%clk 0:07:52.5]} 18... Rxa1 {[%clk 0:08:11.5]} 19. Rxa1 {[%clk 0:07:52.9]}
19... bxc3 {[%clk 0:08:12.9]} 20. bxc3 {[%clk 0:07:52.7]} 20... Qc7 {[%clk
0:08:14.2]} 21. Qh4 {[%clk 0:07:41.5]} 21... e6 {[%clk 0:08:07.1]} 22. Bxc6
{[%clk 0:07:40.1]} 22... Bxc6 {[%clk 0:08:03.1]} 23. Bf6 {[%clk 0:07:41.6]}
23... Ra8 {[%clk 0:07:55.3]} 24. Rxa8+ {[%clk 0:07:27.4]} 24... Bxa8 {[%clk
0:07:57.2]} 25. Bxg7 {[%clk 0:07:28.7]} 25... Kxg7 {[%clk 0:07:58.9]} 26. Ng3
{[%clk 0:07:22.2]} 26... Qa5 {[%clk 0:07:34.3]} 27. Qg5 {[%clk 0:05:09.6]} 27...
h6 {[%clk 0:07:05.5]} 28. Nh5+ {[%clk 0:04:40.4]} 28... Kg8 {[%clk 0:06:49.4]}
29. Nf6+ {[%clk 0:04:34.2]} 29... Kg7 {[%clk 0:06:50.2]} 30. Qf4 {[%clk
0:02:42.7]} 30... e5 {[%clk 0:05:47.3]} 31. Qh4 {[%clk 0:02:43.2]} 31... Qxc3
{[%clk 0:03:08]} 32. Ne8+ {[%clk 0:02:41.9]} 32... Kf8 {[%clk 0:02:13.5]} 33.
Qd8 {[%clk 0:00:53.4]} 33... Qc1+ {[%clk 0:02:13]} 34. Kh2 {[%clk 0:00:54.7]}
34... Qf4+ {[%clk 0:02:14.9]} 35. Kg1 {[%clk 0:00:55.2]} 35... Qc1+ {[%clk
0:02:15.9]} 36. Kh2 {[%clk 0:00:56.4]} 36... Qf4+ {[%clk 0:02:17.8]} 37. Kg1
{[%clk 0:00:57.4]} 37... Qc1+ {[%clk 0:02:19.1]} 1/2-1/2

[Event "GrandPrix_29.05"]
[Site "Chess.com"]
[Date "2020.05.29"]
[Round "6"]
[White "SipkeErnst"]
[Black "ninullia"]
[Result "1/2-1/2"]
[WhiteElo "2122"]
[BlackElo "2298"]
[TimeControl "600+2"]
[EndTime "11:59:18 PDT"]
[Termination "Game drawn by repetition"]

1. d4 {[%clk 0:10:01.9]} 1... Nf6 {[%clk 0:09:48]} 2. c4 {[%clk 0:09:57.3]} 2...
e6 {[%clk 0:09:48.3]} 3. g3 {[%clk 0:09:47.6]} 3... d5 {[%clk 0:09:45.9]} 4. Nf3
{[%clk 0:09:42.1]} 4... Bb4+ {[%clk 0:09:43.5]} 5. Bd2 {[%clk 0:09:39.9]} 5...
Bd6 {[%clk 0:09:44.2]} 6. Nc3 {[%clk 0:09:37.7]} 6... O-O {[%clk 0:09:39.3]} 7.
e3 {[%clk 0:09:33.7]} 7... dxc4 {[%clk 0:09:30.3]} 8. Bxc4 {[%clk 0:09:32.9]}
8... a6 {[%clk 0:09:27]} 9. a4 {[%clk 0:09:24.6]} 9... b6 {[%clk 0:09:26.6]} 10.
O-O {[%clk 0:09:20.2]} 10... Bb7 {[%clk 0:09:24.4]} 11. Re1 {[%clk 0:09:20.2]}
11... c5 {[%clk 0:09:18.2]} 12. Bf1 {[%clk 0:09:18.3]} 12... Nc6 {[%clk
0:09:14.5]} 13. Bg2 {[%clk 0:09:15.2]} 13... Nb4 {[%clk 0:09:14.2]} 14. Na2
{[%clk 0:09:11.7]} 14... Nd3 {[%clk 0:09:09.9]} 15. Rf1 {[%clk 0:09:04.4]} 15...
cxd4 {[%clk 0:08:11]} 16. Nxd4 {[%clk 0:09:02]} 16... Bxg2 {[%clk 0:08:06.8]}
17. Kxg2 {[%clk 0:09:03.9]} 17... Be5 {[%clk 0:07:56.2]} 18. Bc3 {[%clk
0:09:02.2]} 18... Qd5+ {[%clk 0:07:45]} 19. f3 {[%clk 0:09:02.9]} 19... Bxd4
{[%clk 0:06:52.2]} 20. Bxd4 {[%clk 0:08:53.8]} 20... Nc5 {[%clk 0:06:44.9]} 21.
Bxf6 {[%clk 0:07:51]} 21... Qxd1 {[%clk 0:06:40.4]} 22. Rfxd1 {[%clk 0:07:52.9]}
22... gxf6 {[%clk 0:06:41.7]} 23. Nc3 {[%clk 0:07:53.8]} 23... Rfd8 {[%clk
0:06:40]} 24. b4 {[%clk 0:07:54]} 24... Nd3 {[%clk 0:06:32.9]} 25. b5 {[%clk
0:07:07.4]} 25... a5 {[%clk 0:06:21.9]} 26. Kf1 {[%clk 0:06:47.2]} 26... Rac8
{[%clk 0:06:15.6]} 27. Ra3 {[%clk 0:06:39.4]} 27... Kf8 {[%clk 0:05:56.9]} 28.
Ne4 {[%clk 0:06:24]} 28... Ne5 {[%clk 0:05:26.8]} 29. Rxd8+ {[%clk 0:06:23.1]}
29... Rxd8 {[%clk 0:05:28.7]} 30. Ke2 {[%clk 0:04:44.7]} 30... f5 {[%clk
0:05:18]} 31. Nf2 {[%clk 0:04:44.1]} 31... Rc8 {[%clk 0:05:06.7]} 32. Nd3 {[%clk
0:04:28.1]} 32... Nxd3 {[%clk 0:04:35.3]} 33. Kxd3 {[%clk 0:04:27.8]} 33... Ke7
{[%clk 0:04:25.5]} 34. Rc3 {[%clk 0:04:17.9]} 34... Rxc3+ {[%clk 0:03:43.6]} 35.
Kxc3 {[%clk 0:04:17.5]} 35... Kd6 {[%clk 0:03:38.7]} 36. Kd4 {[%clk 0:03:13.2]}
36... e5+ {[%clk 0:03:27.9]} 37. Kc4 {[%clk 0:03:13.7]} 37... Ke6 {[%clk
0:03:28.4]} 38. g4 {[%clk 0:03:00.2]} 38... fxg4 {[%clk 0:03:10.1]} 39. fxg4
{[%clk 0:03:00.3]} 39... f6 {[%clk 0:03:02.2]} 40. h4 {[%clk 0:02:51.7]} 40...
h6 {[%clk 0:02:58.9]} 41. Kd3 {[%clk 0:01:40]} 41... Kd5 {[%clk 0:02:51.6]} 42.
e4+ {[%clk 0:01:38.7]} 42... Ke6 {[%clk 0:02:28.6]} 43. Ke2 {[%clk 0:01:35.8]}
43... Kd6 {[%clk 0:02:26.8]} 44. Kd2 {[%clk 0:01:27.6]} 44... Ke6 {[%clk
0:02:25.5]} 45. Ke2 {[%clk 0:01:25.4]} 45... Kd6 {[%clk 0:02:26.4]} 46. Kd2
{[%clk 0:01:25.7]} 46... Ke6 {[%clk 0:02:27.2]} 47. Ke2 {[%clk 0:01:25.7]}
1/2-1/2